Cogmind - Beta 10.2 @@@ ROGUE MODE // 2021.08.05 @ 08:44:04 Player: Olga Result: Self-destructed Performance ------------- Evolutions (2) 1000 Regions Visited (5) 1000 Robots Destroyed (25) 125 Value Destroyed (557) 557 Prototype IDs (6) 120 Alien Tech Used (0) 0 Bonus (0) 0 TOTAL SCORE: 2802 Bonus ------- None Cogmind --------- Core Integrity 493/550 Matter 1/300 Energy 147/150 System Corruption 0% Temperature Cool (3) Movement Flying (34) Location -8/Materials Parts ------- > --- POWER (2) -------- Light Ion Engine Light Ion Engine > --- PROPULSION (4) --- Flight Unit Flight Unit Cesium-ion Thruster > --- UTILITY (3) ------ Small Storage Unit Improved Targeting Computer > --- WEAPON (2) ------- Light Assault Rifle > --- INVENTORY (6) ---- Ion Engine Improved Ion Engine Improved Light Cannon Improved Light Cannon Improved Light Cannon Peak State ------------ > --- POWER ------------ Light Ion Engine Light Ion Engine > --- PROPULSION ------- Flight Unit Flight Unit Flight Unit Cesium-ion Thruster > --- UTILITY ---------- Small Storage Unit Improved Targeting Computer > --- WEAPON ----------- Light Assault Rifle Rocket Launcher > --- INVENTORY -------- Ion Engine Improved Ion Engine Flight Unit Improved Light Cannon Improved Light Cannon Improved Light Cannon [Rating: 15] Favorites ----------- Power Ion Engine Engine Ion Engine Propulsion Aluminum Leg Leg Aluminum Leg Wheel Compact Wheel Flight Unit Flight Unit Utility Small Storage Unit Device Experimental Sensor Array Storage Small Storage Unit Processor Improved Targeting Computer Protection Medium Armor Plating Weapon Assault Rifle Energy Gun Medium Laser Ballistic Gun Assault Rifle Ballistic Cannon Improved Light Cannon Launcher Rocket Launcher Build | -11 -10 -10 -9 -9 -8 ------- Run | Scr Mat Min Mat Min Mat Slots Evolved 4 | . . . 2 . 2 Power 1 | . . . . . 1 Propulsion 2 | . . . 2 . . Utility 1 | . . . . . 1 Weapon . | . . . . . . Parts Attached 48 | 7 3 5 9 16 8 Power 9 | 1 . 1 . 3 4 Engine 9 | 1 . 1 . 3 4 Core . | . . . . . . Reactor . | . . . . . . Propulsion 20 | 3 2 2 4 6 3 Treads . | . . . . . . Leg 10 | 2 2 2 4 . . Wheel 1 | 1 . . . . . Hover . | . . . . . . Flight 9 | . . . . 6 3 Utility 6 | 1 . 1 3 1 . Device 1 | . . 1 . . . Storage 3 | 1 . . 2 . . Processor 1 | . . . . 1 . Hackware . | . . . . . . Protection 1 | . . . 1 . . Artifact . | . . . . . . Weapon 13 | 2 1 1 2 6 1 Energy Gun 1 | . . 1 . . . Energy Cannon . | . . . . . . Ballistic Gun 7 | 2 1 . . 4 . Ballistic Cannon 3 | . . . 2 1 . Launcher 2 | . . . . 1 1 Special Weapon . | . . . . . . Impact Weapon . | . . . . . . Slashing Weapon . | . . . . . . Piercing Weapon . | . . . . . . Special Melee Weapon . | . . . . . . Unidentified Prototypes 1 | . . 1 . . . Parts Lost 12 | . . 2 4 4 2 Power 1 | . . 1 . . . Propulsion 8 | . . . 2 4 2 Utility 1 | . . . 1 . . Weapon 2 | . . 1 1 . . Highest Loss Streak 4 | . . 1 4 3 1 Average Slot Usage (%) 93 | . 82 95 95 96 79 Engine 12 | . 14 13 11 11 18 Leg 27 | . 26 28 40 28 . Flight 6 | . . . . 13 30 Device 5 | . . 12 3 . . Storage 12 | . 14 14 11 11 9 Processor 1 | . . . . 1 9 Protection 3 | . . . 6 9 . Energy Gun 2 | . . 3 5 . . Ballistic Gun 17 | . 26 21 4 15 9 Ballistic Cannon 3 | . . . 12 6 . Naked Turns . | . . . . . . Heaviest Build 24 | 11 11 14 24 24 15 Greatest Support 40 | 20 20 20 40 40 18 Greatest Overweight (x) 3 | . 3 . 1 2 . Average Overweight (x) . | . . . . . . Largest Inventory Capacity 12 | 6 6 6 12 6 6 Average Capacity 5 | 5 6 6 6 6 6 Most Carried 6 | 6 6 6 6 6 6 Average Carried 5 | 4 5 5 3 5 5 Final Capacity 6 | 6 6 6 6 6 6 Final Carried 6 | 6 6 6 3 6 5 Class Distribution -------------------- 53% | Mutant 38% | Scavenger-Mutant 7% | Scavenger-Sprinter Dominant Class ---------------- Mutant | -10/Materials Mutant | -10/Mines Scavenger-Mutant | -9/Materials Scavenger-Mutant | -9/Mines Scavenger-Mutant | -8/Materials Resources | -11 -10 -10 -9 -9 -8 ----------- Run | Scr Mat Min Mat Min Mat Matter Collected 840 | 173 98 245 102 222 . Remotely . | . . . . . . Salvage Created 786 | . 98 196 102 245 145 Parts 51 | . 3 9 4 25 10 Haulers Intercepted . | . . . . . . Recyclers Shooed 2 | . . 1 1 . . Parts Field Recycled . | . . . . . . Retrieved Matter . | . . . . . . Parts Self-Destructed . | . . . . . . Prevented . | . . . . . . Kills | -11 -10 -10 -9 -9 -8 ------- Run | Scr Mat Min Mat Min Mat Combat Hostiles Destroyed 20 | . 2 4 3 10 1 Guns 17 | . 2 4 1 10 . Cannons 2 | . . . 2 . . AOE 1 | . . . . . 1 Classes Destroyed 6 | . 1 . 1 2 2 Worker 1 | . . . . . 1 Builder 1 | . . . . . 1 Recycler 3 | . . . . 2 1 Swarmer 10 | . . . . 10 . Grunt 9 | . 2 4 2 . 1 Sentry 1 | . . . 1 . . Best Kill Streak 6 | . 2 2 2 6 4 Combat Bots Only 6 | . 2 2 2 6 1 Max Kills in Single Turn 1 | . 1 1 1 1 1 Gunslinging . | . . . . . . Exploded 1 | . . . . . 1 Melee . | . . . . . . Uniques/NPCs Destroyed . | . . . . . . Combat | -11 -10 -10 -9 -9 -8 -------- Run | Scr Mat Min Mat Min Mat Damage Taken 1570 | . 168 350 367 439 246 Core 321 | . 44 89 70 61 57 Absorbed by Shields . | . . . . . . Core Remaining (%) 71 | 100 . 46 . 67 . Volleys Fired 96 | . 10 26 21 30 9 Largest 2 | . 2 2 2 2 2 Hottest 89 | . 40 40 89 78 53 Shots Fired 174 | . 20 38 41 60 15 Gun 148 | . 20 38 31 50 9 Cannon 20 | . . . 10 10 . Launcher 6 | . . . . . 6 Special . | . . . . . . Kinetic 151 | . 20 38 24 60 9 Thermal 17 | . . . 17 . . Explosive 6 | . . . . . 6 Electromagnetic . | . . . . . . Robot Hit Streak 16 | . 9 16 6 4 9 Robot Miss Streak 9 | . 1 3 2 9 1 Penetration Max . | . . . . . . Secondary Targets 1 | . . . . 1 . Max Gunslinging Chain 1 | . . . . 1 . Shots Hit Robots 99 | . 15 28 29 19 8 Core Hits 43 | . 4 11 7 13 8 Critical Hits 1 | . . 1 . . . Critical Kills . | . . . . . . Critical Parts Destroyed 1 | . . 1 . . . Melee Attacks . | . . . . . . Impact . | . . . . . . Slashing . | . . . . . . Piercing . | . . . . . . Sneak Attacks . | . . . . . . Combat Hostiles . | . . . . . . Follow-up Attacks . | . . . . . . Damage Inflicted 1573 | . 160 379 369 325 340 Guns 1072 | . 160 376 266 225 45 Cannons 203 | . . . 103 100 . Explosions 295 | . . . . . 295 Melee . | . . . . . . Ramming 3 | . . 3 . . . Kinetic 1100 | . 160 376 194 325 45 Thermal 175 | . . . 175 . . Explosive 295 | . . . . . 295 Electromagnetic . | . . . . . . Impact . | . . . . . . Slashing . | . . . . . . Piercing . | . . . . . . Highest Corruption . | . . . . . . Average Corruption . | . . . . . . Corruption Purged . | . . . . . . Overload Shots . | . . . . . . Overflow Damage 13 | . . . . . 13 Projectiles . | . . . . . . Explosions 13 | . . . . . 13 Melee . | . . . . . . Knockbacks 1 | . . . . 1 . Impact . | . . . . . . Kinetic 1 | . . . . 1 . Secondary . | . . . . . . Self-Inflicted Damage 1 | . . 1 . . . Shots . | . . . . . . Rammed 1 | . . 1 . . . Targets Rammed 1 | . . 1 . . . Kicked . | . . . . . . Crushed . | . . . . . . Highest Temperature 124 | . 2 8 124 38 60 Average Temperature 38 | . 2 3 58 18 24 Received Heat Transfer 528 | . 102 198 165 . 63 Siege Activations . | . . . . . . Robots Corrupted . | . . . . . . Combat Hostiles . | . . . . . . Parts Fried . | . . . . . . Impact Corruptions . | . . . . . . Robots Melted . | . . . . . . Combat Hostiles . | . . . . . . Parts Melted 1 | . . . 1 . . Heat Transferred 518 | . . . 518 . . Parts Sabotaged . | . . . . . . Parts Stolen . | . . . . . . Parts Stripped . | . . . . . . Power Chain Reactions . | . . . . . . Missiles Intercepted . | . . . . . . Alert | -11 -10 -10 -9 -9 -8 ------- Run | Scr Mat Min Mat Min Mat Peak Influence 257 | . 65 90 164 175 257 Initial 63 | . . 25 . 63 9 Average 62 | . 49 41 50 91 149 Maximum Alert Level 1 | . . . . . 1 Low Security (%) 98 | 100 100 100 100 100 77 Level 1 1 | . . . . . 22 Level 2 . | . . . . . . Level 3 . | . . . . . . Level 4 . | . . . . . . Level 5 . | . . . . . . High Security . | . . . . . . Max Security . | . . . . . . Squads Dispatched 2 | . . . . . 2 Investigation 1 | . . . . . 1 Extermination . | . . . . . . Reinforcement 1 | . . . . . 1 Assault . | . . . . . . Garrison . | . . . . . . Intercept . | . . . . . . Construction Impeded 1 | . . . . . 1 Haulers Reinforced . | . . . . . . Stealth | -11 -10 -10 -9 -9 -8 --------- Run | Scr Mat Min Mat Min Mat Distress Signals 2 | . . . . . 2 Communications Jammed . | . . . . . . Distress Signals . | . . . . . . Times Spotted 44 | . 2 6 8 16 12 Peak Tracking Total 9 | . 2 2 3 4 9 Tactical Retreats 9 | . 1 2 2 3 1 Traps | -11 -10 -10 -9 -9 -8 ------- Run | Scr Mat Min Mat Min Mat Traps Triggered 3 | . 2 . . . 1 Indirectly . | . . . . . . Trap Hack Attempts . | . . . . . . Triggered . | . . . . . . Disarmed . | . . . . . . Reprogrammed . | . . . . . . Reused . | . . . . . . Traps Extracted . | . . . . . . Installed . | . . . . . . Triggered . | . . . . . . Machines | -11 -10 -10 -9 -9 -8 ---------- Run | Scr Mat Min Mat Min Mat Machines Disabled 3 | . . 1 . . 2 Max in Single Turn 1 | . . 1 . . 1 Machines Sabotaged . | . . . . . . Garrisons Compromised . | . . . . . . Overloaded Fab Kills . | . . . . . . Fab Network Shutdowns . | . . . . . . Hacking | -11 -10 -10 -9 -9 -8 --------- Run | Scr Mat Min Mat Min Mat Machines Accessed 6 | . 2 2 2 . . Terminals 6 | . 2 2 2 . . Fabricators . | . . . . . . Repair Stations . | . . . . . . Recycling Units . | . . . . . . Scanalyzers . | . . . . . . Garrison Access . | . . . . . . Total Hacks 12 | . 3 5 4 . . Successful 5 | . 2 1 2 . . Failed 7 | . 1 4 2 . . Catastrophic 2 | . 1 1 . . . Database Lockouts . | . . . . . . Manual . | . . . . . . Terminals 12 | . 3 5 4 . . Fabricators . | . . . . . . Repair Stations . | . . . . . . Recycling Units . | . . . . . . Scanalyzers . | . . . . . . Garrison Access . | . . . . . . Terminal Hacks 5 | . 2 1 2 . . Prototype ID Bank 2 | . 1 . 1 . . Level Access Points 1 | . . 1 . . . Repair Station Index 1 | . . . 1 . . Alert Level 1 | . 1 . . . . Fabricator Hacks . | . . . . . . Repair Station Hacks . | . . . . . . Recycling Unit Hacks . | . . . . . . Scanalyzer . | . . . . . . Garrison Access Hacks . | . . . . . . Unauthorized Hacks . | . . . . . . Terminals . | . . . . . . Fabricators . | . . . . . . Repair Stations . | . . . . . . Recycling Units . | . . . . . . Scanalyzers . | . . . . . . Garrison Access . | . . . . . . Data Cores Recovered . | . . . . . . Used . | . . . . . . Hacking Detections 4 | . 1 2 1 . . Full Trace Events . | . . . . . . Feedback Events . | . . . . . . Feedback Blocked . | . . . . . . Robot Schematics Acquired . | . . . . . . Robots Built . | . . . . . . Matter . | . . . . . . Time . | . . . . . . Total Robot Build Rating . | . . . . . . Part Schematics Acquired . | . . . . . . Parts Built . | . . . . . . Matter . | . . . . . . Time . | . . . . . . Total Part Build Rating . | . . . . . . Parts Repaired . | . . . . . . Time . | . . . . . . Parts Recycled . | . . . . . . Recycled Matter . | . . . . . . Retrieved Matter . | . . . . . . Retrieved Components . | . . . . . . Parts Scanalyzed . | . . . . . . Part Schematics Acquired . | . . . . . . Parts Damaged . | . . . . . . Bothacking | -11 -10 -10 -9 -9 -8 ------------ Run | Scr Mat Min Mat Min Mat Used RIF Installer . | . . . . . . Robots Hacked . | . . . . . . Non-combat . | . . . . . . Combat . | . . . . . . Robot Hacks Applied . | . . . . . . Relay Couplers Released . | . . . . . . Robots Rewired . | . . . . . . Allies Hacked . | . . . . . . Hacks Repelled . | . . . . . . Allies | -11 -10 -10 -9 -9 -8 -------- Run | Scr Mat Min Mat Min Mat Total Allies . | . . . . . . Largest Group . | . . . . . . Highest-Rated Group . | . . . . . . Highest-Rated Ally . | . . . . . . Total Orders . | . . . . . . Ally Attacks . | . . . . . . Total Damage . | . . . . . . Kills . | . . . . . . Allies Corrupted . | . . . . . . Allies Melted . | . . . . . . Intel | -11 -10 -10 -9 -9 -8 ------- Run | Scr Mat Min Mat Min Mat Robot Analysis Total . | . . . . . . Derelict Logs Recovered 4 | . . 2 . 2 . Drone Launches . | . . . . . . Drone Recoveries . | . . . . . . Exploration | -11 -10 -10 -9 -9 -8 ------------- Run | Scr Mat Min Mat Min Mat Turns Passed 2726 | 96 236 1117 297 818 162 Spaces Moved 2225 | 68 157 842 162 664 332 Core 10 | 6 4 . . . . Treads . | . . . . . . Legs 1669 | 62 153 842 162 450 . Wheels . | . . . . . . Hover . | . . . . . . Flight 546 | . . . . 214 332 Fastest Speed 31 | 50 120 120 120 31 31 Average Speed 98 | 113 121 120 120 92 32 Slowest Speed 200 | 120 200 120 150 180 34 Overloaded Moves . | . . . . . . Propulsion Burnouts . | . . . . . . Robots Hopped 7 | . . . . 1 6 Cave-ins Triggered . | . . . . . . Exploration Rate (%) 43 | 5 26 98 16 97 21 Regions Visited 5 Branch Regions 2 Pre-discovered Areas 1 | . . 1 . . . Known Exits Taken 1 | . . 1 . . . Unknown Exits Taken 4 | 1 1 . 1 1 . Scrap Searched 4 | . . 2 . 2 . Spaces Dug 10 | . . . . . 10 Terrain Destroyed 49 | . . . 3 . 46 Melee . | . . . . . . Projectile 3 | . . . 3 . . AOE 46 | . . . . . 46 Terrain Rammed . | . . . . . . Walls Destroyed . | . . . . . . Machines Disabled . | . . . . . . Actions | -11 -10 -10 -9 -9 -8 --------- Run | Scr Mat Min Mat Min Mat Total 2572 | 87 182 913 221 805 364 Wait 155 | . 11 29 23 75 17 Move 2206 | 67 156 841 161 661 320 Hop 7 | . . . . 1 6 Pick Up 34 | 12 1 4 5 10 2 Fast Attach 12 | . 3 3 . 6 . Attach 18 | 7 . . 6 3 2 Detach 3 | 1 . . . 2 . Swap 18 | . . 2 3 7 6 Drop 21 | . 1 6 2 10 2 Fire 96 | . 10 26 21 30 9 Melee . | . . . . . . Ram . | . . . . . . Kick 1 | . . 1 . . . Crush . | . . . . . . Escape Stasis . | . . . . . . Rewire 1 | . . 1 . . . Trap . | . . . . . . Miscellaneous . | . . . . . . Route ------- -11/Scrapyard -10/Materials -10/Mines (discovered 2 exits: *Mat x2) -9/Materials -9/Mines -8/Materials (discovered 1 exit: Sto) History --------- Turn | Location | Event 7 | -11/Scrapyard | Discovered new exit (range 15) 97 | -11/Scrapyard | Entered Materials 306 | -10/Materials | Discovered new exit (range 9) 311 | -10/Materials | Build established: Mutant 333 | -10/Materials | Entered Mines 334 | -10/Mines | Assembled infested the area 404 | -10/Mines | Met 8R-AWN 424 | -10/Mines | Found a damaged Exp. Sensor Array with a note attached 426 | -10/Mines | Found Prototype Device 426 | -10/Mines | Identified Exp. Sensor Array 806 | -10/Mines | Learned location of Storage (-8) 857 | -10/Mines | Learned Materials stockpile data 981 | -10/Mines | Core integrity fell below 50% 1022 | -10/Mines | Discovered new exit (range 10) 1054 | -10/Mines | Identified exit to Materials 1450 | -10/Mines | Entered Materials 1450 | -9/Materials | Evolved 2 slots: Propulsion x2 1599 | -9/Materials | Lost 4 parts (2n1u1w) 1731 | -9/Materials | Discovered new exit (range 14) 1747 | -9/Materials | Entered Mines 1767 | -9/Mines | Learned location of 1 exit from Materials 1829 | -9/Mines | Joined a pair of Derelicts in attacking an 0b10 outpost 1893 | -9/Mines | Build established: Scavenger-Mutant 1958 | -9/Mines | Received a Rocket Launcher from a helpful Derelict 1998 | -9/Mines | Learned Materials stockpile data 2092 | -9/Mines | Discovered new exit (range 9) 2414 | -9/Mines | Lost 3 parts (3n) 2565 | -9/Mines | Entered Materials 2565 | -8/Materials | Evolved 2 slots: Power x1, Utility x1 2566 | -8/Materials | Identified exit to Storage 2727 | -8/Materials | Self-destructed Last Messages --------------- 02621_ R-06 Scavenger destroyed. 02621_ R-06 Scavenger collects Aluminum Leg. 02621_ K-01 Serf collects debris. 02622_ ALERT: Construction progress impeded, dispatching reinforcements to local area. 02624_ Destroyed Wheel. 02624_ U-05 Engineer destroyed. 02626_ R-06 Scavenger collects Sml. Storage Unit. 02629_ R-06 Scavenger collects Aluminum Leg. 02631_ Penetrated by Slug. 02631_ Flight Unit destroyed. 02631_ Dropped Rocket Launcher. 02641_ U-05 Engineer lays Concrete. 02643_ U-05 Engineer builds a Wall. 02690_ Slug penetrates Wall. 02698_ Flight Unit destroyed. 02703_ U-05 Engineer lays Concrete. 02713_ W-25 Informer sends out distress signal. 02721_ O-16 Technician sends out distress signal. 02721_ O-16 Technician: "IFF HANDSHAKE FAILED. SECURING TERMINAL." Map ----- +----------------------------------------------------+ | ?????????????????????????????????????????????????? | | ?????????????????????????????????????????????????? | | ?????????????????????????????????????????????????? | | ?????????????????????????????????????????????????? | | ?????????????????????????????????????????????????? | | ?????????????????????????????????????????????????? | | ?????????????????????????????????????????????????? | | ?????????????????????????????????????????????????? | | ?????????????????????????????????????????????????? | | ?????????????????????????????????????????????????? | | ??????????????????????????? ???????????????????? | | ??????????????????????????? [[ ?????????????????? | | ??????????????????????????+ [[??????????????????? | | ??????????????????????????# [[??????#######?????? | | ??????????????????????????# ??????/ #?????? | | ??????????????????????????# ??????# #?????? | | ??????????????????????????# #??????# #?????? | | ??????????????????????????# #??????# #?????? | | ??????????????????????????# #??????# +?????? | | ??????????????????????????# #??????# #?????? | | ??????????????????????????# #??????# #?????? | | ??????????????????????????# #??????# #?????? | | ??????????# ########### #??????# #?????? | | ?????? + # #??????# ! ####### | | ??????????# #####""" # #??????# ## | | ????????????????????#""" @# #??????# ## "" | | ????????????????????#"S + ##########+#### "" | | ????????????????????#""" # # "" | | ????????????????????# "" # / | | ????????????????????# # # "" | | ????????????????????####################/##+# " | | ??????????????????????????????????# # "" | | ??????????????????????????????????# # | | ??????????????????????????????????# """ ###### | | ????????????????????????########### """"" #????# | | ????????????????????????# / """"" #????# | | ????????????????????????# ######### """"" #????? | | ????????????????????????# ######### """ #????? | | ????????????????????????# # ## =#????? | | ????????????????????????# # ############????? | | ????????????????????????# #""" # ?????? | | ????????????????????????# #""" # """ ""?????? | | ????????????????????????# #""" # """ ""?????? | | ????????????????????????# # # """ """ #??? | | ????????????????????????# ####+### #??? | | ???????????????????????## ##+###########??? | | ???????????????????????## #??????????? | | ??????????????????????### #??????????? | | ??????????????????????# # #??????????? | | ??????????????????????# ##??????????? | +----------------------------------------------------+ Best States ------------- Heat Dissipation 31 Energy Generation 15 Energy Capacity 265 Matter Stores 300 Matter Capacity 300 Sight Range 16 Robot Scan Range 30 Terrain Scan Density 10 Armor Coverage 225 Evasion (%) 63 Targeting Accuracy 6 Item Schematics ----------------- None Robot Schematics ------------------ None Fabricated ------------ Nothing Alien Tech Used ----------------- None Achievements -------------- None Challenges ------------ None Game ------ Seed DiametricSlugPerforator Manual? 0 Play Time 00:38:41 Cumulative 14.8 hours Start 2021.08.04 @ 23:31:46 End 2021.08.05 @ 08:44:04 Sessions 3 Manual Loads 0 Difficulty Rogue Special Mode None Game No. 22 Rogue 22 Adventurer 0 Explorer 0 Win Type - Total 0 Types 0/0/0/0/0/0/0/0/0 Lore% 18 Gallery% 19 Achievement% 14 Wizard Run 0 Options --------- ASCII 1 Keyboard 0 Movement Vi Keybinds 0 Fullscreen 1 Font 24/Smallcaps Map View 76x50 Tactical HUD 1 Map Filters NONE Filters NONE Steam 1 RUN: 76a6af6e-bf74-4aad-bacf-708b965f2708